[Event "European Women Blitz-ch 2024"]
[Site "Monaco"]
[Date "2025.01.10"]
[Round "6.3"]
[White "Kosteniuk, Alexandra"]
[Black "Kanyamarala, Trisha"]
[Result "1-0"]
[Annotator "TA"]
[ECO "B22"]
[WhiteElo "2484"]
[BlackElo "2158"]
[PlyCount "100"]
[EventDate "2025.01.06"]
[EventType "swiss"]
[EventCountry "MNC"]
[SourceTitle "playchess.com"]
[Source "ChessBase"]
[SourceQuality "1"]
[TimeControl "180+2"]

{[%evp 15,100,35,33,31,31,0,41,42,93,54,56,75,69,58,62,51,113,101,104,110,112,70,128,137,198,173,207,230,252,248,289,287,286,224,273,213,240,199,199,195,211,188,299,207,211,200,266,186,181,165,166,147,106,134,312,149,247,0,291,258,29973,29975,29975,29976,29976,29977,29977,29978,29979,29980,29982,29982,29984,29981,29987,29988,29989,29990,29990,29991,29993,29991,29991,29987,29987,29988,29987]} 1. e4 {[%emt 0:00:01][%cal Be2e4,Be4e5][%mdl 32]} c5 {[%emt 0:00:00]} 2. c3 {[%emt 0:00:00]} Nf6 {[%emt 0:00:03]} 3. e5 {[%emt 0:00:01]} Nd5 {[%emt 0:00:01]} 4. Bc4 {[%emt 0:00:01]} Nb6 {[%emt 0:00:01]} 5. Bb3 {[%emt 0:00:01]} d5 {[%emt 0:00:08]} 6. exd6 {[%emt 0:00:04]} Qxd6 {[%emt 0:00:01]} 7. Nf3 {[%emt 0:00:06]} c4 {[%emt 0:00:08]} 8. Bc2 {[%emt 0:00:04]} Nc6 {[%emt 0:00:05]} 9. Na3 {[%emt 0:00:05]} Bg4 {[%emt 0:00:19]} 10. h3 {[%emt 0:00:04]} Bh5 {[%emt 0:00:03]} 11. Qe2 {[%emt 0:00:03] Inhibits Ne5.} e6 {[%emt 0:00:44]} ({Black should try} 11... Bg6 $14) 12. g4 {[%emt 0:00:09]} Bg6 {[%emt 0:00:01]} 13. Bxg6 {[%emt 0:00:04]} hxg6 {[%emt 0:00:01]} 14. Nxc4 {[%emt 0:00:03]} Nxc4 {[%emt 0:00:24]} 15. Qxc4 {[%emt 0:00:01]} a6 {[%emt 0:00:02]} (15... e5 $14) 16. d4 $16 {[%emt 0:00:04]} b5 {[%emt 0:00:09]} 17. Qe2 {[%emt 0:00:04]} Qd5 {[%emt 0:00:04]} 18. a4 {[%emt 0:00:08]} b4 {[%emt 0:00:31]} (18... Na5 $14) 19. c4 {[%emt 0:00:07]} Qa5 {[%emt 0:00:20]} (19... Qd6 $16) 20. b3 {[%emt 0:00:03]} O-O-O {[%emt 0:00:14]} 21. Bb2 {[%emt 0:00:04]} Be7 {[%emt 0:00:06]} 22. O-O-O {[%emt 0:00:11]} Rd7 {[%emt 0:00:05]} 23. Qe4 {[%emt 0:00:09]} Qc7 {[%emt 0:00:05]} 24. Kc2 {[%emt 0:00:04]} Rhd8 {[%emt 0:00:01]} 25. h4 {[%emt 0:00:08]} Kb8 {[%emt 0:00:05]} 26. h5 {[%emt 0:00:02]} gxh5 {[%emt 0:00:02]} 27. Rxh5 {[%emt 0:00:01]} g6 {[%emt 0:00:03]} 28. Rh7 {[%emt 0:00:03]} Bf8 {[%emt 0:00:06]} (28... Bc5 {is a better defense.} 29. Rhh1 Be7) 29. Rh8 {[%emt 0:00:14]} Bg7 {[%emt 0:00:03]} 30. Rxd8+ {[%emt 0:00:02]} Nxd8 {[%emt 0:00:03]} 31. d5 {[%emt 0:00:06]} Bxb2 {[%emt 0:00:02]} 32. Kxb2 {[%emt 0:00:01]} exd5 {[%emt 0:00:01]} 33. Rxd5 {[%emt 0:00:01]} (33. cxd5 Qc3+ 34. Ka2 Re7 35. Qf4+ (35. Qxe7 Qc2+ 36. Ka1 Qc3+ 37. Ka2 Qc2+ 38. Ka1 Qc3+ 39. Kb1 Qxb3+ 40. Kc1 Qc3+ 41. Kb1 Qb3+ 42. Kc1 Qc3+ 43. Kb1 Qb3+ $11) 35... Ka7 $16) 33... Rxd5 {[%emt 0:00:01]} 34. Qxd5 $18 {[%emt 0:00:01][%mdl 4096] Endgame And now Ne5 would win. KQN-KQN. White is a pawn up.} Nb7 $2 {[%emt 0:00:02]} (34... Qb6 $16) 35. Qe5 {[%emt 0:00:02]} (35. Ne5 $18 {has better winning chances.}) 35... Nd6 {[%emt 0:00:01]} (35... Nc5 $16 36. Ka2 a5 37. Qe8+ Qc8 38. Qb5+ (38. Qxf7 Qxg4 39. Qe8+ Ka7 $16) 38... Qb7) 36. Qd5 {[%emt 0:00:14]} Nb7 {[%emt 0:00:03]} 37. Ne5 {[%emt 0:00:02]} Nd8 $2 {[%emt 0:00:02] [#]} (37... Ka8 $18 38. Kc2 (38. Nxf7 Qf4 $11) 38... Qe7) 38. Qxd8+ $3 {[%emt 0:00:05][%mdl 512]} Qxd8 {[%emt 0:00:01]} 39. Nc6+ {[%emt 0:00:01]} (39. Nxf7 Qf6+ 40. Kc2 Qc3+ (40... Qxf7 $2 41. f4 $19) 41. Kd1 Qxb3+ 42. Ke2 Qxc4+ 43. Ke3 Qxf7 44. f4 b3 45. Kd3 b2 (45... Qxf4 {gets mated.} 46. Kc3 Qxa4 47. g5 a5 48. Kd3 b2 49. Kd2 Qe4 50. Kc3 b1=Q 51. Kd2 Qee1#) 46. Kc2 Qa2 (46... Qxf4 47. Kxb2 Qd2+ 48. Kb3 Kc7 49. Kc4 Kb6 50. a5+ Kc6 51. Kb3 Kb5 52. Ka3 Kc4 53. g5 Kc3 54. Ka4 Qa2#) 47. Kd3 b1=Q+ (47... b1=B+ 48. Ke3 Qb3+ 49. Kf2 Be4 50. Ke2 Qf3+ 51. Kd2 Qd3+ 52. Ke1 Qe3+ 53. Kd1 Bd3 54. g5 Qe2+ 55. Kc1 Qc2#) 48. Ke3 Qa3+ (48... Qxa4 49. Kf3 Qh1+ 50. Kg3 Qb3+ 51. Kf2 Qbf3#) 49. Ke2 Qad3+ 50. Kf2 Qbf1#) 39... Kc7 {[%emt 0:00:01]} 40. Nxd8 {[%emt 0:00:01]} Kxd8 {[%emt 0:00:01] KP-KP. White is a pawn up.} 41. Kc2 {[%emt 0:00:01]} a5 {[%emt 0:00:07]} 42. Kd3 {[%emt 0:00:01]} Kc7 {[%emt 0:00:01]} 43. Kd4 {[%emt 0:00:01]} Kd6 {[%emt 0:00:01]} 44. c5+ {[%emt 0:00:00]} Kc6 {[%emt 0:00:01]} 45. g5 {[%emt 0:00:01]} Kd7 {[%emt 0:00:02]} 46. Kd5 {[%emt 0:00:03]} Kc7 {[%emt 0:00:02]} 47. c6 {[%emt 0:00:00]} Kc8 {[%emt 0:00:01]} 48. Kc5 {[%emt 0:00:03]} Kc7 {[%emt 0:00:01]} 49. Kb5 {[%emt 0:00:01]} Kd6 {[%emt 0:00:02]} 50. Kb6 {[%emt 0:00:00]} Kd5 {[%emt 0:00:11]} 1-0

[Event "European Women Blitz-ch 2024"]
[Site "Monaco"]
[Date "2025.01.10"]
[Round "6.4"]
[White "Tsolakidou, Stavroula"]
[Black "Khademalsharieh, Sarasadat"]
[Result "1/2-1/2"]
[Annotator "TA"]
[ECO "A13"]
[WhiteElo "2451"]
[BlackElo "2458"]
[PlyCount "91"]
[EventDate "2025.01.06"]
[EventType "swiss"]
[EventCountry "MNC"]
[SourceTitle "playchess.com"]
[Source "ChessBase"]
[SourceQuality "1"]
[TimeControl "180+2"]

{[%evp 19,91,12,18,17,16,9,16,6,42,21,19,26,46,36,29,37,41,27,45,38,47,15,19,29,66,64,57,50,61,51,72,62,74,25,48,27,160,45,65,45,295,-117,-126,-129,-121,-120,-124,-127,-73,-82,-77,-85,-79,-94,-10,-9,-22,-12,0,0,38,47,45,0,0,0,0,0,0,0,0,0,0,0]} 1. c4 {[%emt 0:00:02]} e6 {[%emt 0:00:01]} 2. g3 {[%emt 0:00:02]} d5 {[%emt 0:00:01]} 3. Bg2 {[%emt 0:00:01]} dxc4 {[%emt 0:00:03]} 4. Nf3 {[%emt 0:00:02]} Nd7 {[%emt 0:00:04]} 5. O-O {[%emt 0:00:07]} a6 {[%emt 0:00:02]} 6. a4 {[%emt 0:00:06]} Ngf6 {[%emt 0:00:04]} 7. Qc2 {[%emt 0:00:06]} c5 {[%emt 0:00:22]} 8. a5 {[%emt 0:00:34]} Be7 {[%emt 0:00:31]} 9. Qxc4 {[%emt 0:00:04]} O-O {[%emt 0:00:03]} 10. Nc3 {[%emt 0:00:08]} b5 {[%emt 0:00:13]} 11. axb6 {[%emt 0:00:04]} Nxb6 {[%emt 0:00:02]} 12. Qa2 {[%emt 0:00:08]} Bb7 {[%emt 0:00:03]} 13. d3 {[%emt 0:00:07]} Nfd5 {[%emt 0:00:08]} 14. Qa5 {[%emt 0:00:25]} Nb4 {[%emt 0:00:16]} 15. Bf4 {[%emt 0:00:06]} N6d5 {[%emt 0:00:17]} 16. Bd2 {[%emt 0:00:10]} Qb8 {[%emt 0:00:14]} 17. Rfc1 {[%emt 0:00:13]} Rc8 {[%emt 0:00:11]} 18. Ne4 {[%emt 0:00:06]} Qa7 {[%emt 0:00:14]} 19. Ne5 {[%emt 0:00:11]} h6 {[%emt 0:00:09]} 20. Nc4 {[%emt 0:00:15]} Nc6 {[%emt 0:00:01]} 21. Qa4 {[%emt 0:00:04]} Nd4 {[%emt 0:00:02]} 22. Qd1 {[%emt 0:00:04]} Bc6 {[%emt 0:00:06]} 23. e3 {[%emt 0:00:06]} Nb5 {[%emt 0:00:02]} 24. Ba5 {[%emt 0:00:11]} Qb7 {[%emt 0:00:05]} 25. Qd2 {[%emt 0:00:04]} Rab8 {[%emt 0:00:03]} 26. Nc3 {[%emt 0:00:18]} (26. Ne5 $16) 26... Nb4 {[%emt 0:00:06]} 27. Bxc6 {[%emt 0:00:02]} Rxc6 {[%emt 0:00:02] [#]} (27... Nxc6 $11 28. Na4 Nxa5 29. Qxa5 h5) 28. Na4 {[%emt 0:00:06]} (28. Bxb4 $1 $16 cxb4 29. Na5 bxc3 30. Rxc3 (30. Nxb7 cxd2 31. Rxc6 Rxb7 $19) 30... Nxc3 31. Nxb7) 28... Nd5 {[%emt 0:00:06]} 29. Qe2 {[%emt 0:00:04]} Qc8 $2 {[%emt 0:00:02] [#]} (29... Bf8 $14) 30. Nab6 $2 {[%emt 0:00:02]} (30. Ne5 $1 $18 {[%mdl 512]}) 30... Nxb6 {[%emt 0:00:02]} 31. Nxb6 {[%emt 0:00:01]} Rcxb6 {[%emt 0:00:02]} 32. Bxb6 {[%emt 0:00:01]} Rxb6 {[%emt 0:00:01]} 33. d4 {[%emt 0:00:01]} Rc6 {[%emt 0:00:02]} (33... Na7 $142 34. b4 Rxb4 35. Qxa6 Rb7) 34. dxc5 $17 {[%emt 0:00:02]} Bxc5 {[%emt 0:00:02]} 35. Qc4 {[%emt 0:00:03]} Rc7 {[%emt 0:00:01]} 36. Qa4 {[%emt 0:00:02]} Bd6 {[%emt 0:00:12]} (36... Qd7 $17) 37. Rxc7 $11 {[%emt 0:00:02]} Nxc7 {[%emt 0:00:07]} (37... Bxc7 {simplifies} 38. Qxa6 Qxa6 39. Rxa6 Kf8) 38. Qc6 {[%emt 0:00:01]} Qf8 {[%emt 0:00:02]} 39. Rd1 {[%emt 0:00:02]} Nb5 {[%emt 0:00:02]} 40. Qxa6 {[%emt 0:00:03]} Qb8 {[%emt 0:00:00]} 41. Qc6 {[%emt 0:00:02]} Be5 {[%emt 0:00:02]} 42. Rd7 {[%emt 0:00:03]} Nd6 {[%emt 0:00:08]} (42... Bxb2 $2 {loses.} 43. Rb7 Qa8 44. Qxb5 $18) 43. Qc5 {[%emt 0:00:02]} Qxb2 {[%emt 0:00:05]} 44. Rxd6 {[%emt 0:00:02]} Bxd6 {[%emt 0:00:01]} 45. Qxd6 {[%emt 0:00:01]} Qb1+ {[%emt 0:00:01]} 46. Kg2 {[%emt 0:00:02]} 1/2-1/2

[Event "European Women Blitz-ch 2024"]
[Site "Monaco"]
[Date "2025.01.10"]
[Round "6.5"]
[White "Narva, Mai"]
[Black "Rudzinska, Michalina"]
[Result "0-1"]
[Annotator "TA"]
[ECO "C00"]
[WhiteElo "2398"]
[BlackElo "2226"]
[PlyCount "72"]
[EventDate "2025.01.06"]
[EventType "swiss"]
[EventCountry "MNC"]
[SourceTitle "playchess.com"]
[Source "ChessBase"]
[SourceQuality "1"]
[TimeControl "180+2"]

{[%evp 11,71,0,0,-25,-14,-12,-20,-19,30,41,28,28,141,139,191,102,163,72,108,65,185,195,203,197,269,293,264,287,414,416,572,539,519,531,657,605,750,777,1042,1057,1145,1089,1259,1075,1639,1598,1962,1020,1245,887,1044,943,968,975,970,954,2026,2022,3026,2703,3232,-29999]} 1. e4 {[%emt 0:00:02]} c5 {[%emt 0:00:01]} 2. Nf3 {[%emt 0:00:01]} e6 {[%emt 0:00:01]} 3. g3 {[%emt 0:00:03]} Nc6 {[%emt 0:00:03]} 4. Bg2 {[%emt 0:00:02]} Nf6 {[%emt 0:00:06]} 5. d3 {[%emt 0:00:04]} d5 {[%emt 0:00:06]} 6. Qe2 {[%emt 0:00:04]} Be7 {[%emt 0:00:04]} 7. e5 {[%emt 0:00:06]} Nd7 {[%emt 0:00:01]} 8. c4 {[%emt 0:00:02]} Rb8 {[%emt 0:00:16]} 9. O-O {[%emt 0:00:19]} b5 {[%emt 0:00:05]} (9... d4 $142) 10. cxd5 $11 {[%emt 0:00:07]} exd5 {[%emt 0:00:02]} 11. Nc3 {[%emt 0:00:02]} d4 {[%emt 0:00:17]} (11... Nf8 $11) 12. Nd5 $16 {[%emt 0:00:11]} Nb6 {[%emt 0:00:10] [#]} (12... O-O $16) 13. Nxe7 {[%emt 0:00:29]} (13. Nf6+ $1 $18 Kf8 (13... gxf6 14. exf6 Nd5 15. fxe7 $18) 14. Ng5 gxf6 15. exf6 Bxf6 16. Bxc6) 13... Nxe7 {[%emt 0:00:10]} (13... Qxe7 $16 14. Nh4 Nb4) 14. Bd2 {[%emt 0:00:25]} (14. Ng5 $18 {is more deadly.}) 14... O-O {[%emt 0:00:10]} 15. Rac1 {[%emt 0:00:06]} Be6 {[%emt 0:00:18]} ({Better is} 15... c4 $14) 16. Rxc5 $18 {[%emt 0:00:07]} Na4 {[%emt 0:00:01]} 17. Rcc1 {[%emt 0:00:15]} Bxa2 {[%emt 0:00:12]} (17... b4 18. Ng5 Bxa2) 18. Bb4 {[%emt 0:00:18]} Re8 {[%emt 0:00:06]} 19. Bd6 {[%emt 0:00:05] A strong pair of Bishops.} Rb6 {[%emt 0:00:09]} (19... Rc8 {is a better defense.} 20. Nxd4 Qb6) 20. Nxd4 {[%emt 0:00:06]} Ng6 {[%emt 0:00:12]} 21. Nc6 {[%emt 0:00:21]} Qd7 {[%emt 0:00:23]} 22. Qc2 {[%emt 0:00:01]} Qe6 {[%emt 0:00:34]} 23. Nd4 {[%emt 0:00:04] Dodges Bb3} Qg4 {[%emt 0:00:02]} 24. f4 {[%emt 0:00:07]} h5 {[%emt 0:00:17][%cal Bh7h5,Bh5h4,Bh4g3][%mdl 32]} 25. b3 {[%emt 0:00:02][%cal Bb2b3,Bb3a4][%mdl 32]} h4 {[%emt 0:00:02]} 26. bxa4 {[%emt 0:00:03]} hxg3 {[%emt 0:00:01]} 27. h3 {[%emt 0:00:03]} Qh4 {[%emt 0:00:02]} 28. Qxa2 {[%emt 0:00:05]} Nxf4 {[%emt 0:00:02]} 29. Bc5 {[%emt 0:00:12]} Rb7 {[%emt 0:00:04]} 30. Bxb7 {[%emt 0:00:03]} Nxh3+ {[%emt 0:00:01]} 31. Kg2 {[%emt 0:00:01][%cal Bg1g2,Bg2f3,Bf3f4,Bf4e4][%mdl 32]} Nf4+ {[%emt 0:00:01]} 32. Kf3 {[%emt 0:00:02]} g2 {[%emt 0:00:02]} 33. Rg1 {[%emt 0:00:03] aiming for Nf5.} (33. Nxb5 gxf1=N 34. Rxf1 g5 $16) 33... Qh3+ {[%emt 0:00:03]} 34. Kxf4 {[%emt 0:00:02]} g5+ {[%emt 0:00:02] [#]} 35. Ke4 $1 {[%emt 0:00:04]} Qg3 {[%emt 0:00:02]} 36. Qxg2 $4 {[%emt 0:00:02][%mdl 8192]} (36. Bd6 $18 Re7 37. Rc8+ (37. Bxe7 Qg4+ 38. Ke3 bxa4 $18) (37. Qxg2 f5+ 38. Kd5 f4 $18) (37. Rxg2 Qf4+ 38. Kd5 Re6 $18) 37... Kh7 38. Bxe7 f5+ 39. exf6 (39. Kxf5 Qf4+ 40. Ke6 Qxd4 41. Be4+ Qxe4 42. dxe4 Kh6 43. Qxg2 Kg7 44. Qxg5+ Kh7 45. Qh5#) 39... Qh4+ 40. Kd5) 36... Rxe5# {[%emt 0:00:01]} 0-1

[Event "European Women Blitz-ch 2024"]
[Site "Monaco"]
[Date "2025.01.10"]
[Round "6.6"]
[White "Benmesbah, Natacha"]
[Black "Ushenina, Anna"]
[Result "0-1"]
[Annotator "TA"]
[ECO "B43"]
[WhiteElo "2259"]
[BlackElo "2418"]
[PlyCount "58"]
[EventDate "2025.01.06"]
[EventType "swiss"]
[EventCountry "MNC"]
[SourceTitle "playchess.com"]
[Source "ChessBase"]
[SourceQuality "1"]
[TimeControl "180+2"]

{[%evp 11,58,16,13,0,0,0,0,0,0,0,0,0,0,-34,-35,-53,-47,-84,-85,-190,-176,-179,-106,-174,-139,-262,-227,-393,-354,-363,-133,-371,-329,-505,-258,-254,-257,-485,-496,-884,-905,-1320,-1360,-1239,-1108,-29990,-29991,-29994,-29995]} 1. e4 {[%emt 0:00:01]} c5 {[%emt 0:00:01]} 2. Nf3 {[%emt 0:00:01]} e6 {[%emt 0:00:01]} 3. d4 {[%emt 0:00:01]} cxd4 {[%emt 0:00:01]} 4. Nxd4 {[%emt 0:00:01]} a6 {[%emt 0:00:01]} 5. Nc3 {[%emt 0:00:11]} b5 {[%emt 0:00:01]} 6. a3 {[%emt 0:00:28]} Bb7 {[%emt 0:00:01]} 7. Be3 {[%emt 0:00:02]} Qc7 {[%emt 0:00:05]} 8. Qd2 {[%emt 0:00:10]} Nf6 {[%emt 0:00:03]} 9. f3 {[%emt 0:00:06]} d5 {[%emt 0:00:14]} 10. exd5 {[%emt 0:00:15]} Nxd5 {[%emt 0:00:02]} 11. Nxd5 {[%emt 0:00:09]} Bxd5 {[%emt 0:00:01]} 12. Bd3 {[%emt 0:00:01]} Nd7 {[%emt 0:00:08]} 13. a4 {[%emt 0:00:43]} b4 {[%emt 0:00:07]} 14. a5 {[%emt 0:00:08]} Bd6 {[%emt 0:00:07]} 15. Be4 {[%emt 0:00:27]} (15. Ne2 $17) 15... Bxe4 $1 $19 {[%emt 0:00:06]} (15... Bxh2 16. Bxd5 (16. Qxb4 Bxe4 17. fxe4 Bd6 $17) 16... exd5 17. f4 $18 (17. Qxb4 Bg3+ 18. Kd1 Rb8 $14)) 16. fxe4 {[%emt 0:00:01]} Nf6 {[%emt 0:00:18]} (16... Bxh2 17. O-O-O Be5 18. Qxb4 $11) (16... Ne5 $19 17. Bf4 Nc4 18. Bxd6 Qxd6) 17. Qd3 {[%emt 0:00:05]} (17. e5 $17 Bxe5 18. Qxb4) 17... O-O {[%emt 0:00:08][%cal Of8d8]} 18. Bg5 {[%emt 0:00:12]} (18. Nb3 $17) 18... Ng4 {[%emt 0:00:08][%cal Oa8c8]} (18... Bxh2 19. Bxf6 gxf6 20. O-O-O Bf4+ 21. Kb1 $17) 19. Nb3 $2 {[%emt 0:00:11]} (19. Qe2 Be5 (19... Nxh2 $2 20. O-O-O $19) 20. O-O-O) 19... h6 {[%emt 0:00:14]} 20. O-O-O {[%emt 0:00:15]} Be5 $2 {[%emt 0:00:48]} (20... Bxh2 21. Bh4 $19) (20... Rac8 $19 {is more deadly.} 21. Bh4 Ne3 (21... Bxh2 $2 22. Kb1 $19)) 21. Bh4 $2 {[%emt 0:00:03]} (21. Qe2 $17) 21... Rfc8 {[%emt 0:00:03][%cal Og4e3]} (21... Nxh2 22. Qe2 $17) (21... Bxh2 $2 22. Qe2 Bf4+ 23. Kb1 $17) 22. h3 {[%emt 0:00:04]} (22. Rde1 {keeps fighting.}) 22... Bf4+ {[%emt 0:00:04]} 23. Kb1 {[%emt 0:00:01]} Ne3 {[%emt 0:00:02][%cal Oc7e5]} 24. Rc1 $2 {[%emt 0:00:03]} (24. Bf2 Rd8 (24... Nxd1 $2 25. Qxd1 Qc4 26. Qd3 $19) (24... Qxc2+ 25. Qxc2 Nxc2 26. g3 $17) (24... Nxc2 25. Bc5 $16) (24... Nxg2 $2 {perishes.} 25. Rdg1 $18) 25. Bxe3 Rxd3 26. Rxd3) 24... Nc4 {[%emt 0:00:03][%cal Oc7e5] Hoping for ...Qe5!.} ({Don't take} 24... Nxg2 25. Bf2 Bxc1 26. Rxc1 $19) 25. Rcf1 {[%emt 0:00:01]} (25. Bf2 $142 Rd8 (25... Nxa5 $2 26. Rcd1 $19) 26. Qe2 Bxc1 (26... Nxa5 $2 27. Rcd1 $19) 27. Rxc1) 25... Be5 {[%emt 0:00:01]} (25... Nxa5 $2 26. Nxa5 Be5 (26... g5 27. Rxf4 gxf4 28. Nb3 $16) 27. Nb3 $17) 26. Be1 {[%emt 0:00:02]} Nxb2 {[%emt 0:00:03]} 27. Qe2 {[%emt 0:00:01]} Na4 {[%emt 0:00:06] ( -> ...Nc3+)} 28. Bxb4 {[%emt 0:00:03]} Nc3+ {[%emt 0:00:08]} 29. Bxc3 {[%emt 0:00:02]} Qxc3 {[%emt 0:00:00]} 0-1

[Event "European Women Blitz-ch 2024"]
[Site "Monaco"]
[Date "2025.01.10"]
[Round "6.7"]
[White "Savina, Anastasia"]
[Black "Maltsevskaya, Aleksandra"]
[Result "0-1"]
[Annotator "TA"]
[ECO "E73"]
[WhiteElo "2318"]
[BlackElo "2368"]
[PlyCount "106"]
[EventDate "2025.01.06"]
[EventType "swiss"]
[EventCountry "MNC"]
[SourceTitle "playchess.com"]
[Source "ChessBase"]
[SourceQuality "1"]
[TimeControl "180+2"]

{[%evp 14,106,21,16,19,14,31,12,43,9,0,22,7,0,20,0,47,0,128,52,188,152,177,46,39,43,25,52,48,53,57,8,11,-86,-75,-74,-91,-108,-85,-77,-81,-125,-50,-226,-197,-347,-346,-333,-126,-364,-333,-937,-932,-876,-857,-1164,-1147,-1127,-610,-868,-544,-488,-452,-778,-585,-767,-517,-525,-502,-672,-600,-734,-337,-293,-323,-580,-550,-875,-471,-493,-483,-458,-456,-479,-459,-452,-389,-499,-466,-597,-617,-5521,-5183,-2293,-1878]} 1. d4 {[%emt 0:00:02]} Nf6 {[%emt 0:00:01]} 2. c4 {[%emt 0:00:02]} g6 {[%emt 0:00:01]} 3. Nc3 {[%emt 0:00:02]} Bg7 {[%emt 0:00:02]} 4. e4 {[%emt 0:00:02]} d6 {[%emt 0:00:01]} 5. Be2 {[%emt 0:00:05]} O-O {[%emt 0:00:02]} 6. h4 {[%emt 0:00:10]} c5 {[%emt 0:00:02]} 7. d5 {[%emt 0:00:01]} e6 {[%emt 0:00:01]} 8. h5 {[%emt 0:00:03]} exd5 {[%emt 0:00:01]} 9. exd5 {[%emt 0:00:02]} Re8 {[%emt 0:00:01]} 10. hxg6 {[%emt 0:00:07]} hxg6 {[%emt 0:00:59]} 11. Bh6 {[%emt 0:00:02]} Bxh6 {[%emt 0:00:27]} 12. Rxh6 {[%emt 0:00:02]} Nbd7 {[%emt 0:00:13]} 13. Qd2 {[%emt 0:00:13]} b5 {[%emt 0:00:01]} 14. cxb5 {[%emt 0:00:19]} a6 {[%emt 0:00:01]} (14... Ne4 $1 $11 15. Nxe4 Rxe4) 15. Rh1 {[%emt 0:01:08]} (15. Rh4 $14) 15... Nf8 {[%emt 0:01:11]} (15... Ne4 $1 $11 16. Qh6 Qf6) 16. O-O-O {[%emt 0:00:03]} (16. Qh6 $1 $16 {[%csl Gh1][%cal Rh6h8]} N6h7 17. O-O-O) 16... axb5 {[%emt 0:00:04]} ({Better is} 16... Ne4 $1 $14 17. Nxe4 Rxe4) 17. Bxb5 {[%emt 0:00:03][%cal Od2h6] and Qh6! would now be decisive} Bd7 {[%emt 0:00:09]} 18. Bc4 {[%emt 0:00:16]} ({White should play} 18. Bc6 $18) 18... Ne4 $1 $14 {[%emt 0:00:07]} 19. Nxe4 {[%emt 0:00:28]} Rxe4 {[%emt 0:00:01]} 20. Qc3 {[%emt 0:00:03][%csl Gh1][%cal Rc3h8] Against Rxc4} Nh7 {[%emt 0:00:07]} 21. Nf3 {[%emt 0:00:02] Against Qg5+} Qf6 {[%emt 0:00:04] Wards off Rxh7} 22. Qxf6 {[%emt 0:00:06]} (22. Nd2 $14 {is more appropriate.} Rg4 23. g3) 22... Nxf6 $11 {[%emt 0:00:03]} 23. Bd3 {[%emt 0:00:09]} (23. Nd2 $1 $11 Rg4 24. Rh2) 23... Rg4 $36 {[%emt 0:00:02][%mdl 2048] Black is in control.} 24. a3 {[%emt 0:00:11]} Rxg2 {[%emt 0:00:02][%cal Od7g4]} 25. Rh2 {[%emt 0:00:03]} Rxh2 {[%emt 0:00:02]} 26. Nxh2 {[%emt 0:00:01]} Kg7 {[%emt 0:00:05][%cal Oa8h8]} (26... Nxd5 $2 27. Be4 $18) 27. Bc4 {[%emt 0:00:04] [#]} Rh8 {[%emt 0:00:02] Black is more active.} (27... Ra4 $1 $17 {[%cal Ra4c4]} 28. Bd3 Rd4 (28... Nxd5 29. Bc2 $11)) 28. Nf3 $2 {[%emt 0:00:02] [#]} (28. Nf1 $15) 28... Bg4 $1 $19 {[%emt 0:00:01]} 29. Rd3 {[%emt 0:00:03]} (29. Be2 $142) 29... Rh1+ {[%emt 0:00:03]} 30. Kd2 {[%emt 0:00:02]} Rf1 $2 {[%emt 0:00:02]} (30... Ne4+ $19 {is more deadly.} 31. Kc2 Nxf2) 31. Re3 $2 {[%emt 0:00:04]} (31. Ke3 $17 {was the only defense.}) 31... Rxf2+ {[%emt 0:00:01]} 32. Kc3 $2 {[%emt 0:00:01]} (32. Be2) 32... Bxf3 {[%emt 0:00:02]} 33. a4 {[%emt 0:00:03]} Bd1 {[%emt 0:00:03][%cal Of6g4]} 34. a5 {[%emt 0:00:01]} Rc2+ {[%emt 0:00:02]} 35. Kd3 {[%emt 0:00:01]} Rc1 {[%emt 0:00:02]} 36. Kd2 {[%emt 0:00:02]} Ra1 {[%emt 0:00:01][%cal Od1g4]} 37. Re1 {[%emt 0:00:01]} Rxa5 {[%emt 0:00:02]} 38. Kxd1 {[%emt 0:00:02][%mdl 4096] Endgame KRB-KRN. Black is two pawns up.} (38. Rxd1 $142 Ra8 39. Kd3) 38... Ra4 {[%emt 0:00:02]} 39. b3 {[%emt 0:00:01]} Ra2 {[%emt 0:00:01]} 40. Re7 {[%emt 0:00:02]} Ng4 {[%emt 0:00:02]} 41. Bb5 {[%emt 0:00:03]} Rb2 {[%emt 0:00:02][%cal Og4e5]} 42. Be8 {[%emt 0:00:01]} Rxb3 {[%emt 0:00:01]} (42... Kf8 $142 43. Rxf7+ Kxe8) 43. Rxf7+ {[%emt 0:00:01]} Kh6 {[%emt 0:00:01]} 44. Rd7 $2 {[%emt 0:00:01]} (44. Kc1 {keeps fighting.}) 44... Rd3+ {[%emt 0:00:02]} 45. Ke2 {[%emt 0:00:01]} Rxd5 {[%emt 0:00:01]} 46. Bf7 {[%emt 0:00:04]} Rd4 {[%emt 0:00:03]} 47. Rd8 {[%emt 0:00:04]} Ne5 {[%emt 0:00:01]} ({Much less strong is} 47... Kg5 48. Bb3) 48. Be6 {[%emt 0:00:02]} Kg5 {[%emt 0:00:01]} 49. Ke3 {[%emt 0:00:02]} Rd1 {[%emt 0:00:04]} 50. Rf8 {[%emt 0:00:04]} Nc6 {[%emt 0:00:04]} 51. Bf7 {[%emt 0:00:03]} Rf1 {[%emt 0:00:02] ...Ne5 would now be deadly.} 52. Ke2 {[%emt 0:00:02]} Rf6 {[%emt 0:00:02]} 53. Rc8 {[%emt 0:00:02]} Nd4+ {[%emt 0:00:01]} 0-1